[Event "European Womens-ch 2025"]
[Site "Rhodes"]
[Date "2025.04.02"]
[Round "3.60"]
[White "Schippke, Manon"]
[Black "Mitraka, Chrysoula-Paraskevi"]
[Result "1-0"]
[Annotator "RC"]
[ECO "E04"]
[WhiteElo "2247"]
[BlackElo "1820"]
[PlyCount "83"]
[EventDate "2025.03.29"]
[EventType "swiss"]
[EventCountry "GRE"]
[SourceTitle "playchess.com"]
[Source "ChessBase"]
[SourceQuality "1"]
[TimeControl "40/5400+30:1800+30"]

1. d4 {[%emt 0:00:03]} d5 {[%emt 0:00:43]} 2. c4 {[%emt 0:00:10]} e6 {[%emt 0:00:14]} 3. Nf3 {[%emt 0:00:04]} Nf6 {[%emt 0:00:30]} 4. g3 {[%emt 0:00:30]} dxc4 {[%emt 0:01:00]} 5. Bg2 {[%emt 0:01:03]} Nc6 {[%emt 0:00:38]} 6. O-O {[%emt 0:00:36]} Rb8 {[%emt 0:01:01]} 7. Qc2 {[%emt 0:11:36]} Be7 {[%emt 0:08:11]} 8. Qxc4 {[%emt 0:00:40]} O-O {[%emt 0:03:23]} 9. Rd1 {[%emt 0:03:12]} Na5 {[%emt 0:10:51]} 10. Qa4 {[%emt 0:01:42]} b6 {[%emt 0:04:13]} 11. Ne5 {[%emt 0:00:58]} Bd7 {[%emt 0:06:53]} 12. Nxd7 {[%emt 0:06:22]} Qxd7 {[%emt 0:01:00]} 13. Qc2 {[%emt 0:00:27]} h6 {[%emt 0:11:08]} 14. a3 {[%emt 0:00:51]} Nb7 {[%emt 0:01:01]} 15. Bc6 {[%emt 0:01:18]} Qd8 {[%emt 0:01:13]} 16. b4 {[%emt 0:00:58]} Qc8 {[%emt 0:04:37]} 17. Nc3 {[%emt 0:02:12]} Nd8 {[%emt 0:04:15]} 18. Bg2 {[%emt 0:00:49]} Bd6 {[%emt 0:08:15]} 19. e4 {[%emt 0:02:59]} e5 {[%emt 0:01:06]} 20. dxe5 {[%emt 0:01:02]} Bxe5 {[%emt 0:00:28]} 21. f4 {[%emt 0:00:40]} Bxc3 {[%emt 0:01:12]} 22. Qxc3 {[%emt 0:00:05]} Re8 {[%emt 0:05:28]} 23. Bb2 {[%emt 0:02:08]} Rf8 {[%emt 0:02:39]} 24. f5 {[%emt 0:02:42]} c5 {[%emt 0:04:22]} 25. e5 {[%emt 0:00:48]} Ne8 {[%emt 0:00:45]} 26. Qf3 {[%emt 0:01:45]} Qb7 {[%emt 0:02:01]} 27. Qg4 {[%emt 0:03:20]} Qc8 {[%emt 0:02:34]} 28. e6 {[%emt 0:01:57]} fxe6 {[%emt 0:07:57]} 29. fxe6 {[%emt 0:00:04]} Nf6 {[%emt 0:00:34]} 30. Bxf6 {[%emt 0:00:20]} Rxf6 {[%emt 0:00:19]} 31. e7 {[%emt 0:01:59]} Qxg4 {[%emt 0:01:46]} 32. Rxd8+ {[%emt 0:00:51]} Rxd8 {[%emt 0:04:43]} 33. exd8=Q+ {[%emt 0:00:09]} Kh7 {[%emt 0:00:18]} 34. Re1 {[%emt 0:00:41]} Qd4+ {[%emt 0:01:30]} 35. Qxd4 {[%emt 0:00:05]} cxd4 {[%emt 0:00:07]} 36. Re5 {[%emt 0:00:37]} Rd6 {[%emt 0:00:54]} 37. Rd5 {[%emt 0:00:06]} Rc6 {[%emt 0:00:29]} 38. Be4+ {[%emt 0:00:16]} Rg6 {[%emt 0:00:31]} 39. Rd6 {[%emt 0:00:07]} Kg8 {[%emt 0:00:22]} 40. Bxg6 {[%emt 0:00:00]} Kf8 {[%emt 0:00:00]} 41. Re6 {[%emt 0:00:09]} d3 {[%emt 0:02:10]} 42. Re8# {[%emt 0:00:06]} 1-0

[Event "European Womens-ch 2025"]
[Site "Rhodes"]
[Date "2025.04.02"]
[Round "3.61"]
[White "Bania, Eleni"]
[Black "Zaksaite, Salomeja"]
[Result "0-1"]
[Annotator "RC"]
[ECO "B07"]
[WhiteElo "1809"]
[BlackElo "2137"]
[PlyCount "124"]
[EventDate "2025.03.29"]
[EventType "swiss"]
[EventCountry "GRE"]
[SourceTitle "playchess.com"]
[Source "ChessBase"]
[SourceQuality "1"]
[TimeControl "40/5400+30:1800+30"]

1. e4 {[%emt 0:00:02]} d6 {[%emt 0:00:50]} 2. d4 {[%emt 0:00:16]} Nf6 {[%emt 0:00:21]} 3. Nc3 {[%emt 0:00:46]} e5 {[%emt 0:00:06]} 4. dxe5 {[%emt 0:01:13]} dxe5 {[%emt 0:00:06]} 5. Qxd8+ {[%emt 0:00:18]} Kxd8 {[%emt 0:00:04]} 6. Bg5 {[%emt 0:00:34]} c6 {[%emt 0:00:22]} 7. Bc4 {[%emt 0:02:55]} Be6 {[%emt 0:00:50]} 8. Bxe6 {[%emt 0:02:09]} fxe6 {[%emt 0:00:04]} 9. O-O-O+ {[%emt 0:08:24]} Nbd7 {[%emt 0:00:34]} 10. f3 {[%emt 0:04:54]} Kc7 {[%emt 0:00:39]} 11. Nge2 {[%emt 0:06:38]} a5 {[%emt 0:04:41]} 12. a4 {[%emt 0:06:41]} Bc5 {[%emt 0:00:11]} 13. b3 {[%emt 0:08:18]} h6 {[%emt 0:04:23]} 14. Bh4 {[%emt 0:08:53]} g5 {[%emt 0:00:11]} 15. Be1 {[%emt 0:02:15]} Nh5 {[%emt 0:09:41]} 16. Rf1 {[%emt 0:02:03]} Raf8 {[%emt 0:00:22]} 17. Bf2 {[%emt 0:01:50]} Ba3+ {[%emt 0:00:56]} 18. Kb1 {[%emt 0:01:36]} Rf7 {[%emt 0:00:20]} 19. Ka2 {[%emt 0:03:27]} Bb4 {[%emt 0:00:16]} 20. h3 {[%emt 0:03:09]} Rg8 {[%emt 0:04:55]} 21. Be3 {[%emt 0:08:39]} Nf4 {[%emt 0:00:30]} 22. Rg1 {[%emt 0:01:15]} h5 {[%emt 0:01:11]} 23. Rdf1 {[%emt 0:05:30]} Nf8 {[%emt 0:02:46]} 24. Kb2 {[%emt 0:06:07]} Nd7 {[%emt 0:01:07]} 25. Kc1 {[%emt 0:08:25]} Rgf8 {[%emt 0:02:12]} 26. Bxf4 {[%emt 0:02:05]} exf4 {[%emt 0:01:26]} 27. Kb2 {[%emt 0:00:47]} Bc5 {[%emt 0:00:35]} 28. Rh1 {[%emt 0:00:11]} Ne5 {[%emt 0:00:15]} 29. Nc1 {[%emt 0:01:50]} Ng6 {[%emt 0:05:45]} 30. N3e2 {[%emt 0:02:03]} Be3 {[%emt 0:00:30]} 31. Nd3 {[%emt 0:00:30]} b5 {[%emt 0:00:30]} 32. axb5 {[%emt 0:00:30]} cxb5 {[%emt 0:08:33]} 33. Ra1 {[%emt 0:01:45]} Kb6 {[%emt 0:00:07]} 34. b4 {[%emt 0:00:37]} a4 {[%emt 0:00:29]} 35. Ne1 {[%emt 0:00:53]} Rd8 {[%emt 0:08:59]} 36. Nd3 {[%emt 0:00:17]} Rc7 {[%emt 0:00:30]} 37. Rhd1 {[%emt 0:00:30]} Rcd7 {[%emt 0:00:30]} 38. Ra3 {[%emt 0:00:30]} Ne5 {[%emt 0:00:30]} 39. Rc3 {[%emt 0:00:30]} Nc4+ {[%emt 0:00:30]} 40. Kb1 {[%emt 0:00:30]} e5 {[%emt 0:00:30]} 41. Ka2 {[%emt 0:30:30]} Rd6 {[%emt 0:09:24]} 42. Rh1 {[%emt 0:00:00]} Bd4 {[%emt 0:11:56]} 43. Nxd4 {[%emt 0:00:00]} exd4 {[%emt 0:00:04]} 44. Rxc4 {[%emt 0:00:00]} bxc4 {[%emt 0:00:04]} 45. Nc5 {[%emt 0:00:00]} d3 {[%emt 0:05:02]} 46. cxd3 {[%emt 0:00:00]} cxd3 {[%emt 0:00:05]} 47. Nxa4+ {[%emt 0:00:00]} Ka7 {[%emt 0:06:57]} 48. Rd1 {[%emt 0:02:59]} d2 {[%emt 0:00:24]} 49. Nc3 {[%emt 0:00:13]} Rd3 {[%emt 0:00:30]} 50. Kb2 {[%emt 0:00:30]} Re3 {[%emt 0:00:30]} 51. Nd5 {[%emt 0:00:30]} Re2 {[%emt 0:00:30]} 52. Kc3 {[%emt 0:02:03]} Rxg2 {[%emt 0:06:01]} 53. Rxd2 {[%emt 0:00:00]} Rg3 {[%emt 0:00:06]} 54. Rd3 {[%emt 0:00:22]} Rxh3 {[%emt 0:00:11]} 55. Kc4 {[%emt 0:00:33]} g4 {[%emt 0:01:49]} 56. Ra3+ {[%emt 0:00:12]} Kb7 {[%emt 0:01:29]} 57. Nxf4 {[%emt 0:00:47]} Rxf3 {[%emt 0:00:33]} 58. Rxf3 {[%emt 0:00:06]} gxf3 {[%emt 0:00:04]} 59. Nxh5 {[%emt 0:00:31]} f2 {[%emt 0:00:43]} 60. Ng3 {[%emt 0:00:05]} Rg8 {[%emt 0:00:07]} 61. Nf1 {[%emt 0:00:28]} Rg1 {[%emt 0:00:42]} 62. Nd2 {[%emt 0:00:20]} Rd1 {[%emt 0:00:16]} 0-1

[Event "European Womens-ch 2025"]
[Site "Rhodes"]
[Date "2025.04.02"]
[Round "3.62"]
[White "Nadzamova, Viktoria"]
[Black "Recica, Jona"]
[Result "1-0"]
[Annotator "NA RC"]
[ECO "C22"]
[WhiteElo "2122"]
[BlackElo "1716"]
[PlyCount "59"]
[EventDate "2025.03.29"]
[EventType "swiss"]
[EventCountry "GRE"]
[SourceTitle "playchess.com"]
[Source "ChessBase"]
[SourceQuality "1"]
[TimeControl "40/5400+30:1800+30"]

1. e4 {[%emt 0:00:04]} e5 {[%emt 0:00:12]} 2. d4 {[%emt 0:00:14]} exd4 {[%emt 0:00:08]} 3. Qxd4 {[%emt 0:00:07]} Nc6 {[%emt 0:00:19]} 4. Qe3 {[%emt 0:00:13]} d6 {[%emt 0:01:50]} 5. Bd2 {[%emt 0:01:31]} Nf6 {[%emt 0:02:00]} 6. Nc3 {[%emt 0:01:42]} Be7 {[%emt 0:03:39]} 7. h3 {[%emt 0:00:38]} Be6 {[%emt 0:08:25]} 8. O-O-O {[%emt 0:00:52]} a6 {[%emt 0:06:03]} 9. Nge2 {[%emt 0:04:13]} Qd7 {[%emt 0:07:31]} 10. f4 {[%emt 0:02:07]} O-O-O {[%emt 0:02:42]} 11. Qf2 {[%emt 0:08:26]} Bc4 {[%emt 0:04:14]} 12. Be3 {[%emt 0:04:34]} Qe8 {[%emt 0:03:13]} 13. b3 {[%emt 0:10:30]} Bxe2 {[%emt 0:00:47]} 14. Bxe2 {[%emt 0:00:07]} Nd7 {[%emt 0:07:10]} 15. Nd5 {[%emt 0:02:22]} h5 {[%emt 0:07:42]} 16. Rhe1 {[%emt 0:02:27]} Bf6 {[%emt 0:03:30]} 17. Bf3 {[%emt 0:01:11]} Ne7 {[%emt 0:02:03]} 18. Nxf6 {[%emt 0:01:04]} Nxf6 {[%emt 0:00:16]} 19. Bd4 {[%emt 0:00:34]} c5 {[%emt 0:03:53]} 20. Bxf6 {[%emt 0:03:21]} gxf6 {[%emt 0:00:08]} 21. e5 {[%emt 0:00:07]} fxe5 {[%emt 0:02:35]} 22. fxe5 {[%emt 0:00:10]} Qb5 {[%emt 0:12:33]} 23. exd6 {[%emt 0:01:31]} Ng6 {[%emt 0:00:26]} 24. Rd5 {[%emt 0:02:39]} b6 {[%emt 0:01:51]} 25. Bxh5 {[%emt 0:00:16]} Qa5 {[%emt 0:00:29]} 26. Kb2 {[%emt 0:01:29]} Nf4 {[%emt 0:02:40]} 27. Bg4+ {[%emt 0:03:54]} Kb7 {[%emt 0:01:38]} 28. Rdd1 {[%emt 0:00:27]} c4 {[%emt 0:03:49]} 29. Qxf4 {[%emt 0:00:58]} c3+ {[%emt 0:00:10]} 30. Kb1 {[%emt 0:00:02]} 1-0

[Event "European Womens-ch 2025"]
[Site "Rhodes"]
[Date "2025.04.02"]
[Round "3.63"]
[White "Shuqja, Klean"]
[Black "Saraci, Ndriqona"]
[Result "1-0"]
[Annotator "NA RC"]
[ECO "B01"]
[WhiteElo "2049"]
[BlackElo "1692"]
[PlyCount "107"]
[EventDate "2025.03.29"]
[EventType "swiss"]
[EventCountry "GRE"]
[SourceTitle "playchess.com"]
[Source "ChessBase"]
[SourceQuality "1"]
[TimeControl "40/5400+30:1800+30"]

1. e4 {[%emt 0:02:50]} d5 {[%emt 0:00:10]} 2. exd5 {[%emt 0:00:06]} Qxd5 {[%emt 0:00:07]} 3. Nc3 {[%emt 0:00:03]} Qd8 {[%emt 0:00:10]} 4. d4 {[%emt 0:00:23]} Nf6 {[%emt 1:32:03]} 5. g3 {[%emt 0:00:57]} g6 {[%emt 0:00:00]} 6. Bg2 {[%emt 0:00:10]} Bg7 {[%emt 0:00:00]} 7. Nf3 {[%emt 0:00:36]} O-O {[%emt 0:00:00]} 8. O-O {[%emt 1:29:25]} a6 {[%emt 0:02:00]} 9. Ne5 {[%emt 0:00:30]} Nbd7 {[%emt 0:00:00]} 10. Qe2 {[%emt 0:00:00]} Rb8 {[%emt 0:00:00]} 11. h3 {[%emt 0:01:00]} e6 {[%emt 0:00:00]} 12. Rd1 {[%emt 0:00:00]} c6 {[%emt 0:00:00]} 13. Bf4 {[%emt 0:01:00]} Ra8 {[%emt 0:00:00]} 14. Nxd7 {[%emt 0:00:00]} Qxd7 {[%emt 0:00:00]} 15. Na4 {[%emt 0:01:00]} Qd8 {[%emt 0:03:30]} 16. Be5 {[%emt 0:00:00]} Nd5 {[%emt 0:00:00]} 17. c4 {[%emt 0:00:00]} Nb6 {[%emt 0:00:00]} 18. Nc5 {[%emt 0:00:00]} Nd7 {[%emt 0:00:00]} 19. Nxd7 {[%emt 0:00:00]} Bxd7 {[%emt 0:00:00]} 20. Bxg7 {[%emt 0:00:00]} Kxg7 {[%emt 0:00:00]} 21. h4 {[%emt 0:00:00]} Rb8 {[%emt 0:00:00]} 22. Rac1 {[%emt 0:00:00]} Qf6 {[%emt 0:00:00]} 23. Rc3 {[%emt 0:00:00]} Rbd8 {[%emt 0:00:00]} 24. Rf3 {[%emt 0:00:00]} Qe7 {[%emt 0:00:00]} 25. Qe5+ {[%emt 0:00:00]} f6 {[%emt 0:00:00]} 26. Qc7 {[%emt 0:00:00]} Rb8 {[%emt 0:00:00]} 27. Rb3 {[%emt 0:00:00]} Rfc8 {[%emt 0:00:00]} 28. Qb6 {[%emt 0:00:00]} Qd8 {[%emt 0:00:00]} 29. Rdd3 {[%emt 0:00:00]} Qe7 {[%emt 0:00:00]} 30. Re3 {[%emt 0:00:00]} Qd8 {[%emt 0:00:00]} 31. Kh2 {[%emt 0:00:00]} a5 {[%emt 0:00:00]} 32. Red3 {[%emt 0:02:40]} Qc7 {[%emt 0:00:00]} 33. Qxc7 {[%emt 0:01:46]} Rxc7 {[%emt 0:00:00]} 34. Rb6 {[%emt 0:00:15]} Ra8 {[%emt 0:00:00]} 35. Rdb3 {[%emt 0:01:09]} Ra7 {[%emt 0:00:00]} 36. Ra3 {[%emt 0:01:07]} a4 {[%emt 0:04:02]} 37. c5 {[%emt 0:01:22]} Be8 {[%emt 0:01:23]} 38. Rb4 {[%emt 0:00:24]} Ra8 {[%emt 0:01:37]} 39. Rbxa4 {[%emt 0:01:28]} Rd8 {[%emt 0:00:58]} 40. Ra8 {[%emt 0:00:00]} Rxa8 {[%emt 0:00:00]} 41. Rxa8 {[%emt 0:00:11]} Bf7 {[%emt 0:01:11]} 42. Ra7 {[%emt 0:00:26]} e5 {[%emt 0:03:21]} 43. dxe5 {[%emt 0:03:58]} fxe5 {[%emt 0:00:10]} 44. a4 {[%emt 0:03:17]} Bc4 {[%emt 0:00:56]} 45. b4 {[%emt 0:00:40]} Kf6 {[%emt 0:08:16]} 46. b5 cxb5 {[%emt 0:23:36]} 47. c6 {[%emt 0:03:49]} Rxc6 {[%emt 0:00:00]} 48. Bxc6 bxc6 49. a5 {[%emt 0:02:18]} b4 {[%emt 0:00:00]} 50. Rc7 Bd5 {[%emt 0:00:00]} 51. a6 {[%emt 0:06:48]} b3 {[%emt 0:00:00]} 52. a7 b2 {[%emt 0:00:00]} 53. a8=Q b1=Q {[%emt 0:03:30]} 54. Qf8+ {[%emt 0:03:14]} 1-0

[Event "European Womens-ch 2025"]
[Site "Rhodes"]
[Date "2025.04.02"]
[Round "3.64"]
[White "Mihaljevic, Eva"]
[Black "Korinioti, Myrto"]
[Result "1-0"]
[Annotator "NA RC"]
[ECO "B38"]
[WhiteElo "2039"]
[BlackElo "1667"]
[PlyCount "61"]
[EventDate "2025.03.29"]
[EventType "swiss"]
[EventCountry "GRE"]
[SourceTitle "playchess.com"]
[Source "ChessBase"]
[SourceQuality "1"]
[TimeControl "40/5400+30:1800+30"]

1. e4 {[%emt 0:00:03]} c5 {[%emt 0:00:21]} 2. Nf3 {[%emt 0:00:10]} Nc6 {[%emt 0:00:10]} 3. d4 {[%emt 0:00:16]} cxd4 {[%emt 0:00:07]} 4. Nxd4 {[%emt 0:00:06]} g6 {[%emt 0:00:21]} 5. c4 {[%emt 0:01:01]} Bg7 {[%emt 0:00:15]} 6. Be3 {[%emt 0:00:29]} Nf6 {[%emt 0:00:41]} 7. Nc3 {[%emt 0:00:10]} O-O {[%emt 0:00:13]} 8. Be2 {[%emt 0:00:43]} d6 {[%emt 0:00:26]} 9. O-O {[%emt 0:00:48]} Bd7 {[%emt 0:00:17]} 10. h3 {[%emt 0:04:02]} Nxd4 {[%emt 0:01:35]} 11. Bxd4 {[%emt 0:02:57]} Bc6 {[%emt 0:00:32]} 12. Qc2 {[%emt 0:02:55]} Nd7 {[%emt 0:04:25]} 13. Bxg7 {[%emt 0:04:17]} Kxg7 {[%emt 0:00:10]} 14. Rfd1 {[%emt 0:04:47]} a5 {[%emt 0:01:55]} 15. Bg4 {[%emt 0:03:45]} Qc7 {[%emt 0:16:22]} 16. Bxd7 {[%emt 0:00:37]} Bxd7 {[%emt 0:00:12]} 17. Nd5 {[%emt 0:00:50]} Qd8 {[%emt 0:00:58]} 18. Qc3+ {[%emt 0:09:52]} f6 {[%emt 0:05:23]} 19. Qe3 {[%emt 0:06:17]} Rc8 {[%emt 0:15:20]} 20. Rac1 {[%emt 0:08:01]} Rc5 {[%emt 0:11:11]} 21. Nf4 {[%emt 0:03:38]} Qc7 {[%emt 0:01:56]} 22. b3 {[%emt 0:01:42]} a4 {[%emt 0:01:58]} 23. Nd5 {[%emt 0:02:03]} Qd8 {[%emt 0:00:39]} 24. b4 {[%emt 0:01:01]} Rc8 {[%emt 0:04:22]} 25. Nb6 {[%emt 0:04:10]} Rc7 {[%emt 0:00:48]} 26. c5 {[%emt 0:00:52]} dxc5 {[%emt 0:06:09]} 27. Rxc5 {[%emt 0:02:09]} Rxc5 {[%emt 0:03:25]} 28. Qxc5 {[%emt 0:01:13]} Qe8 {[%emt 0:00:43]} 29. Rxd7 {[%emt 0:00:23]} Rf7 {[%emt 0:00:11]} 30. Rxb7 {[%emt 0:00:46]} a3 {[%emt 0:00:19]} 31. Ra7 {[%emt 0:00:51]} 1-0

[Event "European Womens-ch 2025"]
[Site "Rhodes"]
[Date "2025.04.02"]
[Round "3.65"]
[White "Caku, Kler"]
[Black "Kaka, Rengina Tsampika"]
[Result "1-0"]
[Annotator "NA RC"]
[ECO "B01"]
[WhiteElo "2036"]
[BlackElo "1509"]
[PlyCount "115"]
[EventDate "2025.03.29"]
[EventType "swiss"]
[EventCountry "GRE"]
[SourceTitle "playchess.com"]
[Source "ChessBase"]
[SourceQuality "1"]
[TimeControl "40/5400+30:1800+30"]

1. e4 {[%emt 0:00:03]} d5 {[%emt 0:00:22]} 2. exd5 {[%emt 0:00:06]} Qxd5 {[%emt 0:00:15]} 3. Nc3 {[%emt 0:00:08]} Qa5 {[%emt 0:00:27]} 4. Bc4 {[%emt 0:00:07]} Nf6 {[%emt 0:00:48]} 5. d3 {[%emt 0:00:17]} h6 {[%emt 0:00:56]} 6. h3 {[%emt 0:00:55]} Bf5 {[%emt 0:01:22]} 7. Nf3 {[%emt 0:00:49]} e6 {[%emt 0:01:16]} 8. Bd2 {[%emt 0:01:45]} c6 {[%emt 0:01:27]} 9. Nd5 {[%emt 0:00:37]} Qd8 {[%emt 0:00:53]} 10. Nxf6+ {[%emt 0:00:13]} Qxf6 {[%emt 0:00:54]} 11. Bc3 {[%emt 0:00:35]} Qd8 {[%emt 0:06:20]} 12. Qe2 {[%emt 0:00:32]} Qe7 {[%emt 0:05:53]} 13. O-O {[%emt 0:03:08]} b5 {[%emt 0:04:19]} 14. Bb3 {[%emt 0:00:17]} b4 {[%emt 0:04:10]} 15. Bd4 {[%emt 0:01:02]} a5 {[%emt 0:03:41]} 16. Ba4 {[%emt 0:01:50]} Ra6 {[%emt 0:05:05]} 17. Be5 {[%emt 0:03:03]} Nd7 {[%emt 0:03:44]} 18. d4 {[%emt 0:00:45]} Rb6 {[%emt 0:02:13]} 19. Bc7 {[%emt 0:02:57]} Rb7 {[%emt 0:04:03]} 20. Bg3 {[%emt 0:02:24]} Rb6 {[%emt 0:04:38]} 21. Rfe1 {[%emt 0:03:48]} g5 {[%emt 0:09:37]} 22. Bc7 {[%emt 0:02:20]} Rb7 {[%emt 0:01:27]} 23. Be5 {[%emt 0:01:05]} f6 {[%emt 0:05:23]} 24. Bxc6 {[%emt 0:00:45]} fxe5 {[%emt 0:04:00]} 25. Bxb7 {[%emt 0:00:50]} Bg7 {[%emt 0:03:16]} 26. Bc6 {[%emt 0:01:08]} O-O {[%emt 0:01:34]} 27. Bxd7 {[%emt 0:00:41]} Qxd7 {[%emt 0:00:44]} 28. Nxe5 {[%emt 0:00:18]} Qxd4 {[%emt 0:02:54]} 29. c3 {[%emt 0:04:20]} bxc3 {[%emt 0:02:14]} 30. bxc3 {[%emt 0:00:05]} Qxc3 {[%emt 0:00:41]} 31. Rac1 {[%emt 0:00:19]} Qd4 {[%emt 0:02:16]} 32. Nc6 {[%emt 0:01:56]} Qf6 {[%emt 0:04:42]} 33. g4 {[%emt 0:00:15]} Kh8 {[%emt 0:04:27]} 34. gxf5 {[%emt 0:00:08]} Qxf5 {[%emt 0:00:30]} 35. Qf1 {[%emt 0:02:10]} h5 {[%emt 0:02:38]} 36. Qg2 {[%emt 0:00:06]} Bh6 {[%emt 0:01:15]} 37. Nd4 {[%emt 0:01:23]} Qd5 {[%emt 0:03:32]} 38. Nxe6 {[%emt 0:00:19]} Qxg2+ {[%emt 0:00:49]} 39. Kxg2 {[%emt 0:00:06]} Rf7 {[%emt 0:01:06]} 40. Rc8+ {[%emt 0:00:00]} Kh7 {[%emt 0:00:00]} 41. Rc7 {[%emt 0:00:15]} Rxc7 {[%emt 0:01:44]} 42. Nxc7 {[%emt 0:00:07]} Kg6 {[%emt 0:00:51]} 43. Re6+ {[%emt 0:00:02]} Kg7 {[%emt 0:00:47]} 44. a4 {[%emt 0:00:01]} h4 {[%emt 0:01:08]} 45. Ne8+ {[%emt 0:00:03]} Kh7 {[%emt 0:01:25]} 46. Rxh6+ {[%emt 0:00:04]} Kxh6 {[%emt 0:00:23]} 47. Nd6 {[%emt 0:00:03]} Kg6 {[%emt 0:00:34]} 48. Nc4 {[%emt 0:00:04]} Kf5 {[%emt 0:01:01]} 49. Nxa5 {[%emt 0:00:05]} Kf4 {[%emt 0:00:29]} 50. Nc4 {[%emt 0:00:04]} g4 {[%emt 0:00:21]} 51. a5 {[%emt 0:00:03]} gxh3+ {[%emt 0:00:53]} 52. Kxh3 {[%emt 0:00:02]} Kf3 {[%emt 0:00:44]} 53. a6 {[%emt 0:00:03]} Kxf2 {[%emt 0:00:22]} 54. a7 {[%emt 0:00:02]} Ke2 {[%emt 0:00:31]} 55. a8=Q {[%emt 0:00:05]} Kd3 {[%emt 0:00:20]} 56. Qd5+ {[%emt 0:00:15]} Ke2 {[%emt 0:00:22]} 57. Qd2+ {[%emt 0:00:15]} Kf3 {[%emt 0:00:34]} 58. Qe3# {[%emt 0:00:04]} 1-0

[Event "European Womens-ch 2025"]
[Site "Rhodes"]
[Date "2025.04.02"]
[Round "3.66"]
[White "Lamprianou, Marianna"]
[Black "Karadas, Hena"]
[Result "0-1"]
[Annotator "NA RC"]
[ECO "B23"]
[WhiteElo "1498"]
[BlackElo "1931"]
[PlyCount "78"]
[EventDate "2025.03.29"]
[EventType "swiss"]
[EventCountry "GRE"]
[SourceTitle "playchess.com"]
[Source "ChessBase"]
[SourceQuality "1"]
[TimeControl "40/5400+30:1800+30"]

1. e4 {[%emt 0:00:03]} c5 {[%emt 0:00:07]} 2. Nc3 {[%emt 0:00:11]} Nc6 {[%emt 0:00:07]} 3. f4 {[%emt 0:00:15]} g6 {[%emt 0:00:09]} 4. Nf3 {[%emt 0:00:33]} Bg7 {[%emt 0:00:08]} 5. Bb5 {[%emt 0:00:43]} Nd4 {[%emt 0:00:21]} 6. Bc4 {[%emt 0:01:46]} e6 {[%emt 0:03:23]} 7. d3 {[%emt 0:03:20]} Ne7 {[%emt 0:00:56]} 8. Be3 {[%emt 0:02:06]} O-O {[%emt 0:01:30]} 9. O-O {[%emt 0:05:02]} d5 {[%emt 0:00:34]} 10. Bb3 {[%emt 0:02:10]} Nxf3+ {[%emt 0:01:52]} 11. Rxf3 {[%emt 0:01:26]} d4 {[%emt 0:00:09]} 12. Bf2 {[%emt 0:02:43]} dxc3 {[%emt 0:00:17]} 13. Bxc5 {[%emt 0:00:42]} cxb2 {[%emt 0:00:31]} 14. Rb1 {[%emt 0:00:21]} a5 {[%emt 0:01:50]} 15. Ba3 {[%emt 0:01:05]} b5 {[%emt 0:00:19]} 16. c4 {[%emt 0:01:48]} a4 {[%emt 0:00:56]} 17. Bc2 {[%emt 0:02:05]} b4 {[%emt 0:00:39]} 18. Bxb2 {[%emt 0:03:54]} Bxb2 {[%emt 0:00:08]} 19. Rxb2 {[%emt 0:00:08]} Qd4+ {[%emt 0:00:05]} 20. Kf1 {[%emt 0:00:39]} Qxb2 {[%emt 0:00:10]} 21. Rf2 {[%emt 0:00:56]} Qxa2 {[%emt 0:01:08]} 22. Bb1 {[%emt 0:03:00]} Qa1 {[%emt 0:00:39]} 23. Ra2 {[%emt 0:02:05]} Qc3 {[%emt 0:00:16]} 24. Rc2 {[%emt 0:00:55]} Qd4 {[%emt 0:00:07]} 25. g3 {[%emt 0:01:54]} a3 {[%emt 0:00:38]} 26. Ra2 {[%emt 0:01:05]} Bb7 {[%emt 0:00:35]} 27. Qb3 {[%emt 0:02:16]} Nc6 {[%emt 0:00:30]} 28. Rc2 {[%emt 0:01:19]} Rfb8 {[%emt 0:00:22]} 29. Ba2 {[%emt 0:01:27]} Na5 {[%emt 0:00:34]} 30. Ke2 {[%emt 0:01:56]} Nxb3 {[%emt 0:00:11]} 31. Bxb3 {[%emt 0:00:44]} Bc6 {[%emt 0:00:05]} 32. Ra2 {[%emt 0:01:44]} Ba4 {[%emt 0:00:07]} 33. Bxa4 {[%emt 0:01:27]} Rxa4 {[%emt 0:00:03]} 34. h4 {[%emt 0:00:28]} b3 {[%emt 0:00:05]} 35. Rd2 {[%emt 0:00:15]} b2 {[%emt 0:00:11]} 36. Rd1 {[%emt 0:01:02]} b1=Q {[%emt 0:00:12]} 37. Rxb1 {[%emt 0:00:15]} Rxb1 {[%emt 0:00:05]} 38. Kd2 {[%emt 0:00:13]} Rb2+ {[%emt 0:00:10]} 39. Kd1 {[%emt 0:00:13]} Qg1# {[%emt 0:00:04]} 0-1

[Event "European Womens-ch 2025"]
[Site "Rhodes"]
[Date "2025.04.02"]
[Round "3.67"]
[White "Kalyva, Kyriaki"]
[Black "Revelioti, Eleni Nefeli"]
[Result "1-0"]
[Annotator "NA RC"]
[ECO "E48"]
[WhiteElo "1885"]
[BlackElo "1470"]
[PlyCount "61"]
[EventDate "2025.03.29"]
[EventType "swiss"]
[EventCountry "GRE"]
[SourceTitle "playchess.com"]
[Source "ChessBase"]
[SourceQuality "1"]
[TimeControl "40/5400+30:1800+30"]

1. d4 {[%emt 0:00:03]} Nf6 {[%emt 0:00:05]} 2. c4 {[%emt 0:00:06]} e6 {[%emt 0:00:09]} 3. Nc3 {[%emt 0:00:06]} Bb4 {[%emt 0:00:35]} 4. a3 {[%emt 0:00:18]} Bxc3+ {[%emt 0:02:00]} 5. bxc3 {[%emt 0:00:07]} b6 {[%emt 0:01:06]} 6. f3 {[%emt 0:00:34]} d5 {[%emt 0:07:21]} 7. cxd5 {[%emt 0:00:46]} exd5 {[%emt 0:00:16]} 8. e3 {[%emt 0:01:54]} O-O {[%emt 0:01:27]} 9. Bd3 {[%emt 0:01:05]} Bb7 {[%emt 0:01:53]} 10. Ne2 {[%emt 0:01:28]} Nbd7 {[%emt 0:03:22]} 11. O-O {[%emt 0:01:18]} Re8 {[%emt 0:01:02]} 12. Ng3 {[%emt 0:02:23]} c5 {[%emt 0:04:13]} 13. Ra2 {[%emt 0:03:40]} c4 {[%emt 0:01:41]} 14. Bb1 {[%emt 0:00:11]} a5 {[%emt 0:02:04]} 15. Re2 {[%emt 1:24:01]} Qc7 {[%emt 0:10:18]} 16. e4 {[%emt 0:00:00]} dxe4 {[%emt 0:00:37]} 17. fxe4 {[%emt 0:00:00]} b5 {[%emt 0:16:32]} 18. Qc2 {[%emt 0:01:30]} g6 {[%emt 0:05:17]} 19. e5 {[%emt 0:00:00]} Nd5 {[%emt 0:40:02]} 20. Ne4 {[%emt 0:01:00]} f5 {[%emt 0:00:00]} 21. Nd6 {[%emt 0:00:00]} Re7 {[%emt 0:00:00]} 22. Bg5 {[%emt 0:00:00]} Re6 {[%emt 0:00:00]} 23. Nxb5 {[%emt 0:00:00]} Qc6 {[%emt 0:02:00]} 24. a4 {[%emt 0:00:00]} Ba6 {[%emt 0:00:00]} 25. Nd6 {[%emt 0:00:00]} N7b6 {[%emt 0:00:00]} 26. Nxf5 {[%emt 0:00:00]} gxf5 {[%emt 0:00:00]} 27. Qxf5 {[%emt 0:00:00]} Qd7 {[%emt 0:00:00]} 28. Qg4 {[%emt 0:00:00]} Re7 {[%emt 0:00:00]} 29. e6 {[%emt 0:00:00]} Qe8 {[%emt 0:00:00]} 30. Bf6+ {[%emt 0:00:00]} Kf8 {[%emt 0:00:00]} 31. Bh8+ {[%emt 0:00:00]} 1-0